Body Name,Document Number,Service,Type of Expenditure,Invoice Date,Supplier Name,Cost to the Council (Amount Exc VAT),Month
EREWASH BOROUGH COUNCIL,223014,Balance Sheet,COVID 19 - Additional Restrictions Grant,13/01/21,A.A.M INSTALLATIONS LTD,1000,Jan-21
EREWASH BOROUGH COUNCIL,223095,Balance Sheet,COVID 19 - Additional Restrictions Grant,13/01/21,A.A.M INSTALLATIONS LTD,1500,Jan-21
EREWASH BOROUGH COUNCIL,223057,Balance Sheet,COVID 19 - Additional Restrictions Grant,13/01/21,A52 CARS LIMITED,1500,Jan-21
EREWASH BOROUGH COUNCIL,223298,Sports Development Coaching & Courses,Fees Costs and Expenses,06/10/20,ACTIVE PARTNERS TRUST,15117,Jan-21
EREWASH BOROUGH COUNCIL,222993,Green Space,Materials/Consumables,16/12/20,ACTON TIMBER YARD LIMITED,240,Jan-21
EREWASH BOROUGH COUNCIL,222993,Street Scene,Materials/Consumables,16/12/20,ACTON TIMBER YARD LIMITED,52,Jan-21
EREWASH BOROUGH COUNCIL,223054,Balance Sheet,COVID 19 - Additional Restrictions Grant,13/01/21,ADAM FRETWELL PT,750,Jan-21
EREWASH BOROUGH COUNCIL,222839,Balance Sheet,Accountancy Software Licence Payments in Advance,18/12/20,ADVANCED BUSINESS SOFTWARE & SOLUTIONS LIMITED,51082.46,Jan-21
EREWASH BOROUGH COUNCIL,223041,Balance Sheet,ICT Works,31/12/20,ADVANCED BUSINESS SOFTWARE & SOLUTIONS LIMITED,7960.22,Jan-21
EREWASH BOROUGH COUNCIL,223264,Balance Sheet,COVID 19 - Additional Restrictions Grant,20/01/21,ADVANCED VENDING SERVICES LTD,2500,Jan-21
EREWASH BOROUGH COUNCIL,222937,Treasury Management and Bank Charges,Allpay/Post Office Charges,31/12/20,ALLPAY LIMITED,932.51,Jan-21
EREWASH BOROUGH COUNCIL,222886,Kerbside Dry Recycling Collection,Repairs and Maintenance,23/12/20,ALLSCREENS NATIONWIDE LTD,295,Jan-21
EREWASH BOROUGH COUNCIL,222870,Green Space,Materials/Consumables,17/12/20,ALPHA DRAIN SERVICES,360,Jan-21
EREWASH BOROUGH COUNCIL,222962,Property and Estates,Planned Preventative Maintenance,15/12/20,ALPHA PARTNER (MIDLANDS)  LIMITED,560,Jan-21
EREWASH BOROUGH COUNCIL,222955,Property and Estates,Planned Preventative Maintenance,14/12/20,ALPHA PARTNER (MIDLANDS)  LIMITED,992.9,Jan-21
EREWASH BOROUGH COUNCIL,222953,Property and Estates,Reactive Maintenance,15/12/20,ALPHA PARTNER (MIDLANDS)  LIMITED,1120,Jan-21
EREWASH BOROUGH COUNCIL,222732,Property and Estates,Reactive Maintenance,18/12/20,ALPHA PARTNER (MIDLANDS)  LIMITED,1588,Jan-21
EREWASH BOROUGH COUNCIL,222992,Property and Estates,Reactive Maintenance,15/12/20,ALPHA PARTNER (MIDLANDS)  LIMITED,2667,Jan-21
EREWASH BOROUGH COUNCIL,222738,Property and Estates,Reactive Maintenance,18/12/20,ALPHA PARTNER (MIDLANDS)  LIMITED,1906.19,Jan-21
EREWASH BOROUGH COUNCIL,222991,Property and Estates,Reactive Maintenance,15/12/20,ALPHA PARTNER (MIDLANDS)  LIMITED,815,Jan-21
EREWASH BOROUGH COUNCIL,222954,Property and Estates,Planned Preventative Maintenance,14/12/20,ALPHA PARTNER (MIDLANDS)  LIMITED,1305,Jan-21
EREWASH BOROUGH COUNCIL,222737,Property and Estates,Planned Preventative Maintenance,18/12/20,ALPHA PARTNER (MIDLANDS)  LIMITED,1413.58,Jan-21
EREWASH BOROUGH COUNCIL,222988,Property and Estates,Planned Preventative Maintenance,14/12/20,ALPHA PARTNER (MIDLANDS)  LIMITED,1051.71,Jan-21
EREWASH BOROUGH COUNCIL,223073,Balance Sheet,COVID 19 - Additional Restrictions Grant,13/01/21,AMALFI WOMAN LTD,2250,Jan-21
EREWASH BOROUGH COUNCIL,223374,Balance Sheet,COVID 19 - Additional Restrictions Grant,26/01/21,AMS PLATINUM SERVICES LTD,2500,Jan-21
EREWASH BOROUGH COUNCIL,223092,Balance Sheet,COVID 19 - Additional Restrictions Grant,13/01/21,APPLETREE CATERING,1500,Jan-21
EREWASH BOROUGH COUNCIL,223010,Balance Sheet,COVID 19 - Additional Restrictions Grant,13/01/21,APPLETREE CATERING,1000,Jan-21
EREWASH BOROUGH COUNCIL,223258,Balance Sheet,COVID 19 - Additional Restrictions Grant,20/01/21,APPOLO DJS,2500,Jan-21
EREWASH BOROUGH COUNCIL,223104,Balance Sheet,COVID 19 - Additional Restrictions Grant,13/01/21,ARA JOINT VENTURES LTD,1500,Jan-21
EREWASH BOROUGH COUNCIL,223025,Balance Sheet,COVID 19 - Additional Restrictions Grant,13/01/21,ARA JOINT VENTURES LTD,1000,Jan-21
EREWASH BOROUGH COUNCIL,223218,Homelessness,Temporary Accommodation,23/12/20,ASCOT HOTEL,280,Jan-21
EREWASH BOROUGH COUNCIL,223222,Homelessness,Temporary Accommodation,16/12/20,ASCOT HOTEL,280,Jan-21
EREWASH BOROUGH COUNCIL,223220,Homelessness,Temporary Accommodation,06/01/21,ASCOT HOTEL,280,Jan-21
EREWASH BOROUGH COUNCIL,223219,Homelessness,Temporary Accommodation,30/12/20,ASCOT HOTEL,280,Jan-21
EREWASH BOROUGH COUNCIL,223022,Balance Sheet,COVID 19 - Additional Restrictions Grant,13/01/21,REDACTED PERSONAL DATA,1000,Jan-21
EREWASH BOROUGH COUNCIL,223102,Balance Sheet,COVID 19 - Additional Restrictions Grant,13/01/21,REDACTED PERSONAL DATA,1500,Jan-21
EREWASH BOROUGH COUNCIL,223279,Property and Estates,Repairs and Maintenance,13/12/20,ATG ACCESS LTD,365,Jan-21
EREWASH BOROUGH COUNCIL,223111,Balance Sheet,COVID 19 - Additional Restrictions Grant,13/01/21,A-UNIT LIMITED,1500,Jan-21
EREWASH BOROUGH COUNCIL,223033,Balance Sheet,COVID 19 - Additional Restrictions Grant,13/01/21,A-UNIT LIMITED,1000,Jan-21
EREWASH BOROUGH COUNCIL,222692,Arts Development,Special Events,17/12/20,AVAGO CRAFTS,680,Jan-21
EREWASH BOROUGH COUNCIL,223411,Infectious Diseases and Food Poisoning,Work In Default,23/12/20,AW LYMN LTD,1430,Jan-21
EREWASH BOROUGH COUNCIL,223412,Infectious Diseases and Food Poisoning,Work In Default,23/12/20,AW LYMN LTD,1430,Jan-21
EREWASH BOROUGH COUNCIL,222888,Balance Sheet,ICT Software Licence Payment in Advance,24/12/20,AXESS SYSTEMS LTD,2587.5,Jan-21
EREWASH BOROUGH COUNCIL,222741,Balance Sheet,ICT Software Licence Payment in Advance,18/12/20,AXESS SYSTEMS LTD,1800,Jan-21
EREWASH BOROUGH COUNCIL,223367,Balance Sheet,COVID 19 - Additional Restrictions Grant,26/01/21,BARGAIN HOMES,2500,Jan-21
EREWASH BOROUGH COUNCIL,223384,Balance Sheet,COVID 19 - Additional Restrictions Grant,26/01/21,BASHARAT HUSSAIN,2500,Jan-21
EREWASH BOROUGH COUNCIL,223241,Balance Sheet,COVID 19 - Additional Restrictions Grant,15/01/21,BATTERED ILKESTON LTD,1500,Jan-21
EREWASH BOROUGH COUNCIL,223242,Balance Sheet,COVID 19 - Additional Restrictions Grant,12/01/21,BATTERED ILKESTON LTD,1500,Jan-21
EREWASH BOROUGH COUNCIL,223268,Balance Sheet,COVID 19 - Additional Restrictions Grant,20/01/21,BEAUMONT INDUSTRIES,2500,Jan-21
EREWASH BOROUGH COUNCIL,223240,Balance Sheet,COVID 19 - Additional Restrictions Grant,14/01/21,BELLE AME,1500,Jan-21
EREWASH BOROUGH COUNCIL,222934,Balance Sheet,COVID 19 - Additional Restrictions Grant,21/12/20,BELLE AME,1000,Jan-21
EREWASH BOROUGH COUNCIL,223100,Balance Sheet,COVID 19 - Additional Restrictions Grant,13/01/21,REDACTED PERSONAL DATA,1500,Jan-21
EREWASH BOROUGH COUNCIL,223019,Balance Sheet,COVID 19 - Additional Restrictions Grant,13/01/21,REDACTED PERSONAL DATA,1000,Jan-21
EREWASH BOROUGH COUNCIL,223052,Street Scene,Materials/Consumables,31/10/20,BRANDON HIRE STATION,260.39,Jan-21
EREWASH BOROUGH COUNCIL,222842,Green Space,General Equipment,17/11/20,BRANDON HIRE STATION,109.77,Jan-21
EREWASH BOROUGH COUNCIL,222842,Green Space,Materials/Consumables,17/11/20,BRANDON HIRE STATION,100,Jan-21
EREWASH BOROUGH COUNCIL,223052,Green Space,Materials/Consumables,31/10/20,BRANDON HIRE STATION,7.5,Jan-21
EREWASH BOROUGH COUNCIL,223333,ICT Support Services,Telephones,22/12/20,BRITISH TELECOMMUNICATIONS PLC,1820.12,Jan-21
EREWASH BOROUGH COUNCIL,222906,ICT Support Services,Telephones,22/12/20,BRITISH TELECOMMUNICATIONS PLC,668,Jan-21
EREWASH BOROUGH COUNCIL,223171,Occupational Health and Welfare,Occupational Health Service,01/11/20,BUPA HEALTH CLINICS,406.44,Jan-21
EREWASH BOROUGH COUNCIL,223169,Occupational Health and Welfare,Occupational Health Service,01/01/21,BUPA HEALTH CLINICS,406.44,Jan-21
EREWASH BOROUGH COUNCIL,222966,Kerbside Dry Recycling Collection,Repairs and Maintenance,31/12/20,BURROWS RECOVERY,2500,Jan-21
EREWASH BOROUGH COUNCIL,222967,Household/Residual Waste Collection,Repairs and Maintenance,31/12/20,BURROWS RECOVERY,2500,Jan-21
EREWASH BOROUGH COUNCIL,222881,Household/Residual Waste Collection,Repairs and Maintenance,31/12/20,BURROWS RECOVERY,270,Jan-21
EREWASH BOROUGH COUNCIL,223018,Balance Sheet,COVID 19 - Additional Restrictions Grant,13/01/21,CANTERBURY'S HOME IMPROVEMENTS,1000,Jan-21
EREWASH BOROUGH COUNCIL,223099,Balance Sheet,COVID 19 - Additional Restrictions Grant,13/01/21,CANTERBURY'S HOME IMPROVEMENTS,1500,Jan-21
EREWASH BOROUGH COUNCIL,222938,Treasury Management and Bank Charges,Credit/Debit Card Charges,09/12/20,CAPITA,2817.38,Jan-21
EREWASH BOROUGH COUNCIL,222983,Development Control - Fee Earning,Agency Staff,02/12/20,CARRINGTON WEST LIMITED,370,Jan-21
EREWASH BOROUGH COUNCIL,223393,Dog Control,Kennelling Costs,05/01/21,CASTLEFIELD KENNELS LIMITED,330.41,Jan-21
EREWASH BOROUGH COUNCIL,223114,Balance Sheet,COVID 19 - Additional Restrictions Grant,13/01/21,CASTLEFIELD KENNELS LIMITED,1500,Jan-21
EREWASH BOROUGH COUNCIL,223037,Balance Sheet,COVID 19 - Additional Restrictions Grant,13/01/21,CASTLEFIELD KENNELS LIMITED,1000,Jan-21
EREWASH BOROUGH COUNCIL,222865,ICT Support Services,General Equipment,16/12/20,CCS MEDIA LIMITED,824.6,Jan-21
EREWASH BOROUGH COUNCIL,222863,ICT Support Services,General Equipment,22/12/20,CCS MEDIA LIMITED,300,Jan-21
EREWASH BOROUGH COUNCIL,223172,Balance Sheet,Fuel Store,18/12/20,CERTAS ENERGY UK LIMITED T/A CARLTON FUELS,13650.91,Jan-21
EREWASH BOROUGH COUNCIL,223023,Balance Sheet,COVID 19 - Additional Restrictions Grant,13/01/21,CFA STORES LTD,1500,Jan-21
EREWASH BOROUGH COUNCIL,223119,Balance Sheet,COVID 19 - Additional Restrictions Grant,13/01/21,CFA STORES LTD,2250,Jan-21
EREWASH BOROUGH COUNCIL,223115,Balance Sheet,COVID 19 - Additional Restrictions Grant,13/01/21,CJ ENTERTAINMENT HIRE,1500,Jan-21
EREWASH BOROUGH COUNCIL,223038,Balance Sheet,COVID 19 - Additional Restrictions Grant,13/01/21,CJ ENTERTAINMENT HIRE,1000,Jan-21
EREWASH BOROUGH COUNCIL,223068,Balance Sheet,COVID 19 - Additional Restrictions Grant,13/01/21,CKHECKMATE DRIVER TRAINING,1500,Jan-21
EREWASH BOROUGH COUNCIL,222915,Commissioned Projects,Fees Costs and Expenses,21/12/20,CLARE FLANDERS T/A JIVA MARKETING,600,Jan-21
EREWASH BOROUGH COUNCIL,223147,ICT Support Services,Mobile Phones,01/01/21,CLASS AFFINITY PROJECTS LTD,2062.32,Jan-21
EREWASH BOROUGH COUNCIL,223383,Balance Sheet,COVID 19 - Additional Restrictions Grant,26/01/21,COLUMBINE FARM KENNELS,2500,Jan-21
EREWASH BOROUGH COUNCIL,223230,Property and Estates,PPM Mechanical and Equipment,12/01/21,CONCEPT ELEVATORS (UK) LTD,360.67,Jan-21
EREWASH BOROUGH COUNCIL,223043,Household/Residual Waste Collection,Bins,01/12/20,CRAEMER ENVIRONMENTAL SYSTEMS LTD,380,Jan-21
EREWASH BOROUGH COUNCIL,223043,Kerbside Dry Recycling Collection,Bins,01/12/20,CRAEMER ENVIRONMENTAL SYSTEMS LTD,380,Jan-21
EREWASH BOROUGH COUNCIL,222862,Street Scene,Materials/Consumables,16/12/20,CROMWELL POLYTHENE LTD,686.7,Jan-21
EREWASH BOROUGH COUNCIL,223267,Balance Sheet,COVID 19 - Additional Restrictions Grant,20/01/21,CROWDPULLERS (EVENTS) LIMITED,2500,Jan-21
EREWASH BOROUGH COUNCIL,223085,Balance Sheet,COVID 19 - Additional Restrictions Grant,13/01/21,CRUISE-IN-CONTROL LIMITED,1500,Jan-21
EREWASH BOROUGH COUNCIL,223093,Balance Sheet,COVID 19 - Additional Restrictions Grant,13/01/21,DANCING FEET SCHOOL OF DANCE,1500,Jan-21
EREWASH BOROUGH COUNCIL,223011,Balance Sheet,COVID 19 - Additional Restrictions Grant,13/01/21,DANCING FEET SCHOOL OF DANCE,1000,Jan-21
EREWASH BOROUGH COUNCIL,223200,Finance Division,Subscriptions,13/01/21,REDACTED PERSONAL DATA,332,Jan-21
EREWASH BOROUGH COUNCIL,223372,Balance Sheet,COVID 19 - Additional Restrictions Grant,26/01/21,DB PLUMBING & PROPERTY SERVICES LTD,2500,Jan-21
EREWASH BOROUGH COUNCIL,222893,Trade Waste,Repairs and Maintenance,07/12/20,DENNIS EAGLE LTD,701.09,Jan-21
EREWASH BOROUGH COUNCIL,222889,Household/Residual Waste Collection,Repairs and Maintenance,21/12/20,DENNIS EAGLE LTD,256.33,Jan-21
EREWASH BOROUGH COUNCIL,222971,Household/Residual Waste Collection,Repairs and Maintenance,05/01/21,DENNIS EAGLE LTD,222.82,Jan-21
EREWASH BOROUGH COUNCIL,222880,Trade Waste,Repairs and Maintenance,23/12/20,DENNIS EAGLE LTD,433.51,Jan-21
EREWASH BOROUGH COUNCIL,222889,Trade Waste,Repairs and Maintenance,21/12/20,DENNIS EAGLE LTD,73.98,Jan-21
EREWASH BOROUGH COUNCIL,222891,Kerbside Dry Recycling Collection,Repairs and Maintenance,07/12/20,DENNIS EAGLE LTD,1483.5,Jan-21
EREWASH BOROUGH COUNCIL,222887,Household/Residual Waste Collection,Repairs and Maintenance,29/12/20,DENNIS EAGLE LTD,243.74,Jan-21
EREWASH BOROUGH COUNCIL,223174,Household/Residual Waste Collection,Repairs and Maintenance,08/01/21,DENNIS EAGLE LTD,364.24,Jan-21
EREWASH BOROUGH COUNCIL,222890,Trade Waste,Repairs and Maintenance,18/12/20,DENNIS EAGLE LTD,238.65,Jan-21
EREWASH BOROUGH COUNCIL,222894,Trade Waste,Repairs and Maintenance,17/12/20,DENNIS EAGLE LTD,1010.1,Jan-21
EREWASH BOROUGH COUNCIL,222883,Kerbside Dry Recycling Collection,Repairs and Maintenance,21/12/20,DENNIS EAGLE LTD,769.54,Jan-21
EREWASH BOROUGH COUNCIL,222978,Household/Residual Waste Collection,Repairs and Maintenance,04/01/21,DENNIS EAGLE LTD,2750.15,Jan-21
EREWASH BOROUGH COUNCIL,223445,Non Domestic Rates Income and Expenditure,NNDR Tariff,19/01/21,DERBY CITY COUNCIL,520564.97,Jan-21
EREWASH BOROUGH COUNCIL,223209,Homelessness,Temporary Accommodation,13/12/20,DERBY GUESTHOUSE LIMITED,480,Jan-21
EREWASH BOROUGH COUNCIL,223342,Homelessness,Temporary Accommodation,28/12/20,DERBY GUESTHOUSE LIMITED,700,Jan-21
EREWASH BOROUGH COUNCIL,223207,Homelessness,Temporary Accommodation,13/12/20,DERBY GUESTHOUSE LIMITED,350,Jan-21
EREWASH BOROUGH COUNCIL,223208,Homelessness,Temporary Accommodation,13/12/20,DERBY GUESTHOUSE LIMITED,280,Jan-21
EREWASH BOROUGH COUNCIL,223349,Homelessness,Temporary Accommodation,13/12/20,DERBY GUESTHOUSE LIMITED,600,Jan-21
EREWASH BOROUGH COUNCIL,223349,Homelessness,Temporary Accommodation,13/12/20,DERBY GUESTHOUSE LIMITED,100,Jan-21
EREWASH BOROUGH COUNCIL,222832,Homelessness,Temporary Accommodation,13/12/20,DERBY GUESTHOUSE LIMITED,250,Jan-21
EREWASH BOROUGH COUNCIL,223208,Homelessness,Temporary Accommodation,13/12/20,DERBY GUESTHOUSE LIMITED,280,Jan-21
EREWASH BOROUGH COUNCIL,223282,Homelessness,Temporary Accommodation,15/01/21,DERBY GUESTHOUSE LIMITED,700,Jan-21
EREWASH BOROUGH COUNCIL,223357,Balance Sheet,Payroll Collection A/c - Credit Union,25/01/21,DERBYSHIRE COMMUNITY BANK,330,Jan-21
EREWASH BOROUGH COUNCIL,223049,Balance Sheet,Payroll Collection A/c - Purchase Added Years,13/01/21,DERBYSHIRE COUNTY COUNCIL...,283.65,Jan-21
EREWASH BOROUGH COUNCIL,222837,Central Services/Statement of Accounts,Year End Pension Valuation Fee,16/12/20,DERBYSHIRE COUNTY COUNCIL...,300,Jan-21
EREWASH BOROUGH COUNCIL,222868,Balance Sheet,Grant Payments,03/11/20,DERBYSHIRE COUNTY COUNCIL...,4779.78,Jan-21
EREWASH BOROUGH COUNCIL,223049,Balance Sheet,Payroll Collection A/c - Superannuation,13/01/21,DERBYSHIRE COUNTY COUNCIL...,207802.3,Jan-21
EREWASH BOROUGH COUNCIL,223423,Contaminated Land,Site Investigations,04/01/21,DERBYSHIRE COUNTY COUNCIL...,561.84,Jan-21
EREWASH BOROUGH COUNCIL,222867,Balance Sheet,Grant Payments,23/11/20,DERBYSHIRE COUNTY COUNCIL...,3819.32,Jan-21
EREWASH BOROUGH COUNCIL,222869,Balance Sheet,Grant Payments,03/11/20,DERBYSHIRE COUNTY COUNCIL...,5946.4,Jan-21
EREWASH BOROUGH COUNCIL,223350,Emergency Planning,Contracted Services,25/01/21,DERBYSHIRE COUNTY COUNCIL...,15447,Jan-21
EREWASH BOROUGH COUNCIL,222866,Balance Sheet,Grant Payments,30/11/20,DERBYSHIRE COUNTY COUNCIL...,2649.75,Jan-21
EREWASH BOROUGH COUNCIL,223332,Development Control - Fee Earning,Consultants Fees,18/01/21,DERBYSHIRE WILDLIFE TRUST,5366,Jan-21
EREWASH BOROUGH COUNCIL,223332,Planning Policy,Consultants Fees,18/01/21,DERBYSHIRE WILDLIFE TRUST,5366,Jan-21
EREWASH BOROUGH COUNCIL,223256,Balance Sheet,COVID 19 - Additional Restrictions Grant,20/01/21,DOUBLE APEX TV LTD,2500,Jan-21
EREWASH BOROUGH COUNCIL,223081,Balance Sheet,COVID 19 - Additional Restrictions Grant,13/01/21,EAST MIDLANDS MEDICAL SERVICES LTD,1500,Jan-21
EREWASH BOROUGH COUNCIL,223400,Neighbourhood Wardens,Contracted Services,17/01/21,EFFECTIVE SECURITY SERVICES LTD,3224,Jan-21
EREWASH BOROUGH COUNCIL,223399,Neighbourhood Wardens,Contracted Services,10/01/21,EFFECTIVE SECURITY SERVICES LTD,3224,Jan-21
EREWASH BOROUGH COUNCIL,222815,Neighbourhood Wardens,Contracted Services,13/12/20,EFFECTIVE SECURITY SERVICES LTD,3224,Jan-21
EREWASH BOROUGH COUNCIL,222858,Neighbourhood Wardens,Contracted Services,06/12/20,EFFECTIVE SECURITY SERVICES LTD,3224,Jan-21
EREWASH BOROUGH COUNCIL,222816,Neighbourhood Wardens,Contracted Services,20/12/20,EFFECTIVE SECURITY SERVICES LTD,3286,Jan-21
EREWASH BOROUGH COUNCIL,223398,Neighbourhood Wardens,Contracted Services,03/01/21,EFFECTIVE SECURITY SERVICES LTD,3472,Jan-21
EREWASH BOROUGH COUNCIL,223063,Balance Sheet,COVID 19 - Additional Restrictions Grant,13/01/21,ELENA'S BEAUTY & NAILS,1500,Jan-21
EREWASH BOROUGH COUNCIL,223030,Balance Sheet,COVID 19 - Additional Restrictions Grant,13/01/21,EMMA HARRIS LINGERIE LTD,1000,Jan-21
EREWASH BOROUGH COUNCIL,223109,Balance Sheet,COVID 19 - Additional Restrictions Grant,13/01/21,EMMA HARRIS LINGERIE LTD,1500,Jan-21
EREWASH BOROUGH COUNCIL,223424,Community Services,Printing and Stationery,06/01/21,ENVIRONMENT ANALYST,312,Jan-21
EREWASH BOROUGH COUNCIL,223297,Balance Sheet,Payroll Collection A/c - Labour Party Funds,20/01/21,EREWASH LABOUR GROUP,569.54,Jan-21
EREWASH BOROUGH COUNCIL,223425,Dog Control,Uniforms,01/01/21,EREWASH PARTNERSHIP LTD,205.92,Jan-21
EREWASH BOROUGH COUNCIL,223425,Neighbourhood Wardens,Uniforms,01/01/21,EREWASH PARTNERSHIP LTD,205.92,Jan-21
EREWASH BOROUGH COUNCIL,223431,Community Grants,Project Grants,27/01/21,EREWASH SOUND,2000,Jan-21
EREWASH BOROUGH COUNCIL,223285,Development Control - Fee Earning,Consultants Fees,13/01/21,ESSEX COUNTY COUNCIL,3040,Jan-21
EREWASH BOROUGH COUNCIL,222927,Development Control - Fee Earning,Furniture,18/12/20,EURO BUSINESS SERVICES,486.5,Jan-21
EREWASH BOROUGH COUNCIL,222602,Transport Trading Account,Lubricants and Anti-freeze,15/12/20,EUROTRUCK MIDLANDS LTD,236,Jan-21
EREWASH BOROUGH COUNCIL,222913,Civic Accommodation - Long Eaton,Window Cleaning,04/01/21,EXCEL CLEANING SOLUTIONS LIMITED,235,Jan-21
EREWASH BOROUGH COUNCIL,223386,Balance Sheet,COVID 19 - Additional Restrictions Grant,26/01/21,EXPRESS CHIPPY & PIZZA LTD,2500,Jan-21
EREWASH BOROUGH COUNCIL,223251,Balance Sheet,COVID 19 - Additional Restrictions Grant,20/01/21,EXPRESS DRY CLEANING,2500,Jan-21
EREWASH BOROUGH COUNCIL,222875,Green Space,Agency Staff,14/12/20,EXTRA PERSONNEL LTD,3262.9,Jan-21
EREWASH BOROUGH COUNCIL,222876,Street Scene,Agency Staff,14/12/20,EXTRA PERSONNEL LTD,405.3,Jan-21
EREWASH BOROUGH COUNCIL,223044,Street Scene,Agency Staff,07/12/20,EXTRA PERSONNEL LTD,3605.03,Jan-21
EREWASH BOROUGH COUNCIL,223044,Kerbside Dry Recycling Collection,Agency Staff,07/12/20,EXTRA PERSONNEL LTD,1770.99,Jan-21
EREWASH BOROUGH COUNCIL,223126,Street Scene,Agency Staff,04/01/21,EXTRA PERSONNEL LTD,3140.12,Jan-21
EREWASH BOROUGH COUNCIL,223044,Household/Residual Waste Collection,Agency Staff,07/12/20,EXTRA PERSONNEL LTD,2656.49,Jan-21
EREWASH BOROUGH COUNCIL,223125,Street Scene,Agency Staff,04/01/21,EXTRA PERSONNEL LTD,3623.35,Jan-21
EREWASH BOROUGH COUNCIL,223361,Street Scene,Agency Staff,11/01/21,EXTRA PERSONNEL LTD,3322.82,Jan-21
EREWASH BOROUGH COUNCIL,223363,Street Scene,Agency Staff,11/01/21,EXTRA PERSONNEL LTD,3086.47,Jan-21
EREWASH BOROUGH COUNCIL,222874,Street Scene,Agency Staff,14/12/20,EXTRA PERSONNEL LTD,4021.19,Jan-21
EREWASH BOROUGH COUNCIL,223362,Street Scene,Agency Staff,11/01/21,EXTRA PERSONNEL LTD,405.3,Jan-21
EREWASH BOROUGH COUNCIL,223389,Balance Sheet,COVID 19 - Additional Restrictions Grant,26/01/21,EZONE MOBILE & LAPTOP REPAIRS,2500,Jan-21
EREWASH BOROUGH COUNCIL,223432,Community Grants,Project Grants,27/01/21,FIBRO ACTIVE,2000,Jan-21
EREWASH BOROUGH COUNCIL,223380,Balance Sheet,COVID 19 - Additional Restrictions Grant,26/01/21,FLEET 2 WHEELS DRIVING SCHOOL,2500,Jan-21
EREWASH BOROUGH COUNCIL,223120,Balance Sheet,COVID 19 - Additional Restrictions Grant,13/01/21,FOREST SCHOOL NURSERIES LTD,2250,Jan-21
EREWASH BOROUGH COUNCIL,223032,Balance Sheet,COVID 19 - Additional Restrictions Grant,13/01/21,FOREST SCHOOL NURSERIES LTD,1500,Jan-21
EREWASH BOROUGH COUNCIL,222942,Kerbside Dry Recycling Collection,Waste Disposal,30/11/20,GAE SMITH HOLDINGS T/A CASEPAK,44459.87,Jan-21
EREWASH BOROUGH COUNCIL,223080,Balance Sheet,COVID 19 - Additional Restrictions Grant,13/01/21,GAVIN DARBY T/A FRAILLOOP,1500,Jan-21
EREWASH BOROUGH COUNCIL,223270,Balance Sheet,COVID 19 - Additional Restrictions Grant,20/01/21,GINFLIGHT COMPANY LIMITED,1250,Jan-21
EREWASH BOROUGH COUNCIL,223064,Balance Sheet,COVID 19 - Additional Restrictions Grant,13/01/21,GINFLIGHT COMPANY LIMITED,1500,Jan-21
EREWASH BOROUGH COUNCIL,223403,Arts Development,Special Events,25/01/21,REDACTED PERSONAL DATA,680,Jan-21
EREWASH BOROUGH COUNCIL,223059,Balance Sheet,COVID 19 - Additional Restrictions Grant,13/01/21,H PELL @ BROWNS HAIRDRESSING,1500,Jan-21
EREWASH BOROUGH COUNCIL,223255,Balance Sheet,COVID 19 - Additional Restrictions Grant,20/01/21,HAILSNAILS,2500,Jan-21
EREWASH BOROUGH COUNCIL,223066,Balance Sheet,COVID 19 - Additional Restrictions Grant,13/01/21,HEALEYS TOILETRIES,1500,Jan-21
EREWASH BOROUGH COUNCIL,222935,Balance Sheet,COVID 19 - Additional Restrictions Grant,29/12/20,HEALEYS TOILETRIES,1000,Jan-21
EREWASH BOROUGH COUNCIL,223065,Balance Sheet,COVID 19 - Additional Restrictions Grant,13/01/21,HELPING HOOVES DERBYSHIRE CIC,1500,Jan-21
EREWASH BOROUGH COUNCIL,223088,Balance Sheet,COVID 19 - Additional Restrictions Grant,13/01/21,HH AND SPOOKY NIGHTS LTD,1500,Jan-21
EREWASH BOROUGH COUNCIL,223359,Balance Sheet,Payroll Collection A/c - Attachment Orders,25/01/21,HMCTS,257.09,Jan-21
EREWASH BOROUGH COUNCIL,222924,Balance Sheet,Payroll Collection A/c - Income Tax,05/01/21,HMRC CUMBERNAULD,335.4,Jan-21
EREWASH BOROUGH COUNCIL,223201,Balance Sheet,Payroll Collection A/c - Income Tax,18/01/21,HMRC CUMBERNAULD,67448.2,Jan-21
EREWASH BOROUGH COUNCIL,223201,Balance Sheet,Payroll Collection A/c - Statutory Maternity Pay,18/01/21,HMRC CUMBERNAULD,-252.2,Jan-21
EREWASH BOROUGH COUNCIL,222924,Balance Sheet,Payroll Collection A/c - National Insurance,05/01/21,HMRC CUMBERNAULD,514.15,Jan-21
EREWASH BOROUGH COUNCIL,223201,Personnel,Apprenticeship Levy,18/01/21,HMRC CUMBERNAULD,-1250,Jan-21
EREWASH BOROUGH COUNCIL,223201,Balance Sheet,Payroll Collection A/c - National Insurance,18/01/21,HMRC CUMBERNAULD,102076.95,Jan-21
EREWASH BOROUGH COUNCIL,223201,Balance Sheet,Payroll Collection A/c - Recovery of Student Loan,18/01/21,HMRC CUMBERNAULD,1232,Jan-21
EREWASH BOROUGH COUNCIL,223201,Balance Sheet,Apprenticeship Levy,18/01/21,HMRC CUMBERNAULD,3316,Jan-21
EREWASH BOROUGH COUNCIL,223360,Balance Sheet,Payroll Collection A/c - Income Tax,25/01/21,HMRC CUMBERNAULD,253.2,Jan-21
EREWASH BOROUGH COUNCIL,223090,Balance Sheet,COVID 19 - Additional Restrictions Grant,13/01/21,IAN HANDS CONSULTANCY LTD,1500,Jan-21
EREWASH BOROUGH COUNCIL,223050,Director of Resources,Subscriptions,11/01/21,REDACTED PERSONAL DATA,332,Jan-21
EREWASH BOROUGH COUNCIL,223131,Street Scene,Materials/Consumables,14/01/21,ILKESTON PLY & DIY LTD,343.75,Jan-21
EREWASH BOROUGH COUNCIL,223249,Balance Sheet,COVID 19 - Additional Restrictions Grant,20/01/21,ILKESTON RUTLAND CRICKET CLUB,2500,Jan-21
EREWASH BOROUGH COUNCIL,222897,Council Tax Collection,Fees Costs and Expenses,04/12/20,INFORM CPI LTD,6600,Jan-21
EREWASH BOROUGH COUNCIL,223291,Non-domestic Rates Collection,Fees Costs and Expenses,06/01/21,INFORM CPI LTD,712,Jan-21
EREWASH BOROUGH COUNCIL,223123,Performance Management,Data Protection,29/09/20,INFORMATION COMMISSIONER,2895,Jan-21
EREWASH BOROUGH COUNCIL,222980,Balance Sheet,ICT Works,22/12/20,INSIGHT DIRECT (UK) LTD,49000,Jan-21
EREWASH BOROUGH COUNCIL,223413,Car Parking,Credit/Debit Card Charges,31/12/20,INTERNATIONAL PARKING SYSTEMS UK LTD,609.92,Jan-21
EREWASH BOROUGH COUNCIL,223370,Balance Sheet,COVID 19 - Additional Restrictions Grant,26/01/21,IRFAN HAMID T/A TAXI DRIVER,2500,Jan-21
EREWASH BOROUGH COUNCIL,222984,Training - Personnel Costs Only,Courses and Seminars,05/01/21,IRRV,250,Jan-21
EREWASH BOROUGH COUNCIL,223250,Balance Sheet,COVID 19 - Additional Restrictions Grant,20/01/21,REDACTED PERSONAL DATA,2500,Jan-21
EREWASH BOROUGH COUNCIL,222847,Balance Sheet,Building Works,23/12/20,J TOMLINSON LIMITED,39360.5,Jan-21
EREWASH BOROUGH COUNCIL,223322,Arts Development,Special Events,03/12/20,REDACTED PERSONAL DATA,270,Jan-21
EREWASH BOROUGH COUNCIL,223072,Balance Sheet,COVID 19 - Additional Restrictions Grant,13/01/21,JANET TOMBLIN TRAVEL COUNSELLOR,1500,Jan-21
EREWASH BOROUGH COUNCIL,223031,Balance Sheet,COVID 19 - Additional Restrictions Grant,13/01/21,JEFFS AND WALKER LTD T/A THE BIKESHOP,1000,Jan-21
EREWASH BOROUGH COUNCIL,223110,Balance Sheet,COVID 19 - Additional Restrictions Grant,13/01/21,JEFFS AND WALKER LTD T/A THE BIKESHOP,1500,Jan-21
EREWASH BOROUGH COUNCIL,223262,Balance Sheet,COVID 19 - Additional Restrictions Grant,20/01/21,JENSON PRESS PRINTERS,2500,Jan-21
EREWASH BOROUGH COUNCIL,223039,Balance Sheet,COVID 19 - Additional Restrictions Grant,13/01/21,JMS PHOTOGRAPHY,1000,Jan-21
EREWASH BOROUGH COUNCIL,223116,Balance Sheet,COVID 19 - Additional Restrictions Grant,13/01/21,JMS PHOTOGRAPHY,1500,Jan-21
EREWASH BOROUGH COUNCIL,223376,Balance Sheet,COVID 19 - Additional Restrictions Grant,26/01/21,REDACTED PERSONAL DATA,2500,Jan-21
EREWASH BOROUGH COUNCIL,223020,Balance Sheet,COVID 19 - Additional Restrictions Grant,13/01/21,KC JONES CONFERENCE & EVENTS LTD,1500,Jan-21
EREWASH BOROUGH COUNCIL,223118,Balance Sheet,COVID 19 - Additional Restrictions Grant,13/01/21,KC JONES CONFERENCE & EVENTS LTD,2250,Jan-21
EREWASH BOROUGH COUNCIL,223167,Balance Sheet,Childcare Salary Sacrifice-Kiddie Vouchers,05/01/21,KIDDIVOUCHERS LTD,950.41,Jan-21
EREWASH BOROUGH COUNCIL,222900,Front Line Support Services,Security,31/12/20,KINGS ARMOURED SECURITY SERVICES,354.2,Jan-21
EREWASH BOROUGH COUNCIL,223319,Car Parking,Contracted Services,31/12/20,KINGS ARMOURED SECURITY SERVICES,1310.8,Jan-21
EREWASH BOROUGH COUNCIL,222900,Cemeteries,Contracted Services,31/12/20,KINGS ARMOURED SECURITY SERVICES,88.25,Jan-21
EREWASH BOROUGH COUNCIL,223055,Balance Sheet,COVID 19 - Additional Restrictions Grant,13/01/21,KN AESTHETICS CLINIC,1500,Jan-21
EREWASH BOROUGH COUNCIL,223029,Balance Sheet,COVID 19 - Additional Restrictions Grant,13/01/21,KNIGHT TRAVEL LTD,1000,Jan-21
EREWASH BOROUGH COUNCIL,223108,Balance Sheet,COVID 19 - Additional Restrictions Grant,13/01/21,KNIGHT TRAVEL LTD,1500,Jan-21
EREWASH BOROUGH COUNCIL,222872,Reprographics,Equipment Leasing Charge,11/12/20,KONICA MINOLTA BUSINESS SOLUTIONS (UK) LTD,1014.93,Jan-21
EREWASH BOROUGH COUNCIL,223385,Balance Sheet,COVID 19 - Additional Restrictions Grant,26/01/21,KUSTOM RIMZ UK LTD,2500,Jan-21
EREWASH BOROUGH COUNCIL,222908,ICT Support Services,Equipment Leasing Charge,23/12/20,KYOCERA DOCUMENT SOLUTIONS (UK) LTD,2634.42,Jan-21
EREWASH BOROUGH COUNCIL,223036,Balance Sheet,COVID 19 - Additional Restrictions Grant,13/01/21,L A B BY LAUREN,1000,Jan-21
EREWASH BOROUGH COUNCIL,223113,Balance Sheet,COVID 19 - Additional Restrictions Grant,13/01/21,L A B BY LAUREN,1500,Jan-21
EREWASH BOROUGH COUNCIL,222857,Contaminated Land,Site Investigations,23/12/20,LANDMARK INFORMATION GROUP LTD,250,Jan-21
EREWASH BOROUGH COUNCIL,223047,Street Scene,Contracted Services,01/12/20,LANGUARD LTD,2420.55,Jan-21
EREWASH BOROUGH COUNCIL,223047,Green Space,Contracted Services,01/12/20,LANGUARD LTD,1090.8,Jan-21
EREWASH BOROUGH COUNCIL,223292,Legal Services,Reference Literature and Publications,16/12/20,LEXISNEXIS BUTTERWORTHS,453,Jan-21
EREWASH BOROUGH COUNCIL,223378,Balance Sheet,COVID 19 - Additional Restrictions Grant,26/01/21,LIFESTYLE HOME SOLUTIONS LIMITED,3750,Jan-21
EREWASH BOROUGH COUNCIL,223257,Balance Sheet,COVID 19 - Additional Restrictions Grant,20/01/21,LITTLE EATON PLAY SCHOOL,2500,Jan-21
EREWASH BOROUGH COUNCIL,223247,Transport Trading Account,Materials/Consumables,03/02/20,LLOYDS BANK,278.12,Jan-21
EREWASH BOROUGH COUNCIL,223247,Car Parking,Planned Preventative Maintenance,03/02/20,LLOYDS BANK,15.33,Jan-21
EREWASH BOROUGH COUNCIL,222936,Treasury Management and Bank Charges,Lloyds BACS Services,10/12/20,LLOYDS BANK,497.77,Jan-21
EREWASH BOROUGH COUNCIL,223247,Ilkeston Market,General Equipment,03/02/20,LLOYDS BANK,79.16,Jan-21
EREWASH BOROUGH COUNCIL,223247,Green Space,Audit Fees,03/02/20,LLOYDS BANK,13.72,Jan-21
EREWASH BOROUGH COUNCIL,223247,Household/Residual Waste Collection,Road Taxes,03/02/20,LLOYDS BANK,167.5,Jan-21
EREWASH BOROUGH COUNCIL,223247,Green Space,Road Taxes,03/02/20,LLOYDS BANK,262.5,Jan-21
EREWASH BOROUGH COUNCIL,222936,Treasury Management and Bank Charges,Lloyds Bank Charges for Debits and Credits,10/12/20,LLOYDS BANK,164.25,Jan-21
EREWASH BOROUGH COUNCIL,222936,Treasury Management and Bank Charges,Unpaid Cheque Fees,10/12/20,LLOYDS BANK,136.93,Jan-21
EREWASH BOROUGH COUNCIL,223247,ICT Support Services,General Equipment,03/02/20,LLOYDS BANK,13.48,Jan-21
EREWASH BOROUGH COUNCIL,223247,Property and Estates,Printing and Stationery,03/02/20,LLOYDS BANK,41.93,Jan-21
EREWASH BOROUGH COUNCIL,223247,ICT Support Services,Software Licences,03/02/20,LLOYDS BANK,216.87,Jan-21
EREWASH BOROUGH COUNCIL,223247,Homelessness,Fees Costs and Expenses,03/02/20,LLOYDS BANK,55,Jan-21
EREWASH BOROUGH COUNCIL,223247,Corporate Health and Safety,Fire Maintenance,03/02/20,LLOYDS BANK,73.59,Jan-21
EREWASH BOROUGH COUNCIL,223247,Operational Non Leisure Departmental,General Equipment,03/02/20,LLOYDS BANK,69.14,Jan-21
EREWASH BOROUGH COUNCIL,223247,Outreach Project,General Equipment,03/02/20,LLOYDS BANK,20.06,Jan-21
EREWASH BOROUGH COUNCIL,223247,Pewit Golf Course,Road Taxes,03/02/20,LLOYDS BANK,262.5,Jan-21
EREWASH BOROUGH COUNCIL,223247,Homelessness,Temporary Accommodation,03/02/20,LLOYDS BANK,110.97,Jan-21
EREWASH BOROUGH COUNCIL,223247,Contaminated Land,Site Investigations,03/02/20,LLOYDS BANK,292,Jan-21
EREWASH BOROUGH COUNCIL,223247,Civic Accommodation - Ilkeston,Cleaning Materials,03/02/20,LLOYDS BANK,614.4,Jan-21
EREWASH BOROUGH COUNCIL,222969,Green Space,Tyres,31/12/20,LODGE TYRE COMPANY LTD,60,Jan-21
EREWASH BOROUGH COUNCIL,222969,Household/Residual Waste Collection,Tyres,31/12/20,LODGE TYRE COMPANY LTD,2652.5,Jan-21
EREWASH BOROUGH COUNCIL,222969,Kerbside Dry Recycling Collection,Tyres,31/12/20,LODGE TYRE COMPANY LTD,500,Jan-21
EREWASH BOROUGH COUNCIL,222969,Street Scene,Tyres,31/12/20,LODGE TYRE COMPANY LTD,430.5,Jan-21
EREWASH BOROUGH COUNCIL,223429,Balance Sheet,Customer Debtor Refunds,27/01/21,LONG EATON UPHOLSTERY LTD (LONG EATON GUILD),907.2,Jan-21
EREWASH BOROUGH COUNCIL,223062,Balance Sheet,COVID 19 - Additional Restrictions Grant,13/01/21,LOVE MY LEAD,750,Jan-21
EREWASH BOROUGH COUNCIL,223075,Balance Sheet,COVID 19 - Additional Restrictions Grant,13/01/21,M&D AESTHETICS,750,Jan-21
EREWASH BOROUGH COUNCIL,222912,Balance Sheet,Building Works,31/12/20,M&J GROUP CONSTRUCTION & ROOFING,4340.61,Jan-21
EREWASH BOROUGH COUNCIL,223007,Balance Sheet,ICT Works,10/01/21,MACILDOWIE RECRUITMENT EXPERTISE,1152.18,Jan-21
EREWASH BOROUGH COUNCIL,222931,Balance Sheet,ICT Works,31/12/20,MACILDOWIE RECRUITMENT EXPERTISE,724.01,Jan-21
EREWASH BOROUGH COUNCIL,222930,Balance Sheet,ICT Works,27/12/20,MACILDOWIE RECRUITMENT EXPERTISE,1992.96,Jan-21
EREWASH BOROUGH COUNCIL,223276,Balance Sheet,ICT Works,17/01/21,MACILDOWIE RECRUITMENT EXPERTISE,1222.25,Jan-21
EREWASH BOROUGH COUNCIL,222827,Household/Residual Waste Collection,Equipment,21/12/20,MAIN MAN SUPPLIES LTD,756.8,Jan-21
EREWASH BOROUGH COUNCIL,222932,Property and Estates,PPM Mechanical and Equipment,23/12/20,MDB PLUMBING (NOTTM) LTD,1128.06,Jan-21
EREWASH BOROUGH COUNCIL,223444,Non Ring Fenced Government Grants,Revenue Support Grant,19/01/21,MHCLG,-8439,Jan-21
EREWASH BOROUGH COUNCIL,223444,Balance Sheet,NNDR Collection Fund Control Account,19/01/21,MHCLG,-6832,Jan-21
EREWASH BOROUGH COUNCIL,223444,Balance Sheet,NNDR Collection Fund Control Account,19/01/21,MHCLG,-2318,Jan-21
EREWASH BOROUGH COUNCIL,223444,Balance Sheet,NNDR Collection Fund Control Account,19/01/21,MHCLG,1554426,Jan-21
EREWASH BOROUGH COUNCIL,223265,Balance Sheet,COVID 19 - Additional Restrictions Grant,20/01/21,MI TIEMPO SKINCARE & BEAUTY,2500,Jan-21
EREWASH BOROUGH COUNCIL,223296,Balance Sheet,Cashiers Unidentified Receipts,18/01/21,REDACTED PERSONAL DATA,474.8,Jan-21
EREWASH BOROUGH COUNCIL,223058,Balance Sheet,COVID 19 - Additional Restrictions Grant,13/01/21,MIDLAND MEDIA SERVICES LTD,1500,Jan-21
EREWASH BOROUGH COUNCIL,223069,Balance Sheet,COVID 19 - Additional Restrictions Grant,13/01/21,MILLIES RESTAURANT,1500,Jan-21
EREWASH BOROUGH COUNCIL,223070,Balance Sheet,COVID 19 - Additional Restrictions Grant,13/01/21,MILLIES THE COFFEE SHOP,1500,Jan-21
EREWASH BOROUGH COUNCIL,223071,Balance Sheet,COVID 19 - Additional Restrictions Grant,13/01/21,MOHAMMED HANIF T/A TAXI DRIVER,1500,Jan-21
EREWASH BOROUGH COUNCIL,223388,Balance Sheet,COVID 19 - Additional Restrictions Grant,26/01/21,REDACTED PERSONAL DATA,2500,Jan-21
EREWASH BOROUGH COUNCIL,223094,Balance Sheet,COVID 19 - Additional Restrictions Grant,13/01/21,MOTORVATE DRIVING SCHOOL,1500,Jan-21
EREWASH BOROUGH COUNCIL,223012,Balance Sheet,COVID 19 - Additional Restrictions Grant,13/01/21,MOTORVATE DRIVING SCHOOL,1000,Jan-21
EREWASH BOROUGH COUNCIL,223417,Homelessness,Temporary Accommodation,11/08/20,REDACTED PERSONAL DATA,690,Jan-21
EREWASH BOROUGH COUNCIL,223391,Balance Sheet,COVID 19 - Additional Restrictions Grant,26/01/21,REDACTED PERSONAL DATA,2500,Jan-21
EREWASH BOROUGH COUNCIL,223097,Balance Sheet,COVID 19 - Additional Restrictions Grant,13/01/21,REDACTED PERSONAL DATA,1500,Jan-21
EREWASH BOROUGH COUNCIL,223016,Balance Sheet,COVID 19 - Additional Restrictions Grant,13/01/21,REDACTED PERSONAL DATA,1000,Jan-21
EREWASH BOROUGH COUNCIL,223390,Balance Sheet,COVID 19 - Additional Restrictions Grant,26/01/21,REDACTED PERSONAL DATA,2500,Jan-21
EREWASH BOROUGH COUNCIL,223253,Balance Sheet,COVID 19 - Additional Restrictions Grant,20/01/21,NEXUS EXHIBITIONS LTD,2500,Jan-21
EREWASH BOROUGH COUNCIL,223181,Street Scene,Street Furniture,29/10/20,NIBRA SIGNS LTD,3008.13,Jan-21
EREWASH BOROUGH COUNCIL,223035,Balance Sheet,COVID 19 - Additional Restrictions Grant,13/01/21,NIC JONES AGILITY,1000,Jan-21
EREWASH BOROUGH COUNCIL,223112,Balance Sheet,COVID 19 - Additional Restrictions Grant,13/01/21,NIC JONES AGILITY,1500,Jan-21
EREWASH BOROUGH COUNCIL,223252,Balance Sheet,COVID 19 - Additional Restrictions Grant,20/01/21,NICOLA SUMPTER HAIR AND MAKE UP,2500,Jan-21
EREWASH BOROUGH COUNCIL,223078,Balance Sheet,COVID 19 - Additional Restrictions Grant,13/01/21,NMT HOSPITALITY LTD,1500,Jan-21
EREWASH BOROUGH COUNCIL,223269,Balance Sheet,COVID 19 - Additional Restrictions Grant,20/01/21,NORTON PLASTICS LTD,3750,Jan-21
EREWASH BOROUGH COUNCIL,222838,Council Tax Collection,Fees Costs and Expenses,23/10/20,NOTTINGHAM CITY COUNCIL..,524.7,Jan-21
EREWASH BOROUGH COUNCIL,223288,Homelessness,Temporary Accommodation,30/12/20,NOVOTEL NOTTINGHAM,761.96,Jan-21
EREWASH BOROUGH COUNCIL,223420,Homelessness,Temporary Accommodation,04/12/20,NOVOTEL NOTTINGHAM,585.06,Jan-21
EREWASH BOROUGH COUNCIL,223281,Homelessness,Temporary Accommodation,24/11/20,NOVOTEL NOTTINGHAM,280,Jan-21
EREWASH BOROUGH COUNCIL,223421,Homelessness,Temporary Accommodation,12/11/20,NOVOTEL NOTTINGHAM,280,Jan-21
EREWASH BOROUGH COUNCIL,223281,Homelessness,Temporary Accommodation,24/11/20,NOVOTEL NOTTINGHAM,766.53,Jan-21
EREWASH BOROUGH COUNCIL,223421,Homelessness,Temporary Accommodation,12/11/20,NOVOTEL NOTTINGHAM,558.2,Jan-21
EREWASH BOROUGH COUNCIL,223420,Homelessness,Temporary Accommodation,04/12/20,NOVOTEL NOTTINGHAM,315,Jan-21
EREWASH BOROUGH COUNCIL,222907,ICT Support Services,Mobile Phones,28/12/20,O2 UK LTD,313.86,Jan-21
EREWASH BOROUGH COUNCIL,223107,Balance Sheet,COVID 19 - Additional Restrictions Grant,13/01/21,OCKBROOK BOARDING CATTERY,1500,Jan-21
EREWASH BOROUGH COUNCIL,223028,Balance Sheet,COVID 19 - Additional Restrictions Grant,13/01/21,OCKBROOK BOARDING CATTERY,1000,Jan-21
EREWASH BOROUGH COUNCIL,223082,Balance Sheet,COVID 19 - Additional Restrictions Grant,13/01/21,ODD EXHIBITIONS LTD,1500,Jan-21
EREWASH BOROUGH COUNCIL,223076,Balance Sheet,COVID 19 - Additional Restrictions Grant,13/01/21,ONESTOPCARSHOPUK LIMITED,1500,Jan-21
EREWASH BOROUGH COUNCIL,223392,Balance Sheet,COVID 19 - Additional Restrictions Grant,26/01/21,ONESTOPCARSHOPUK LIMITED,2500,Jan-21
EREWASH BOROUGH COUNCIL,223098,Balance Sheet,COVID 19 - Additional Restrictions Grant,13/01/21,REDACTED PERSONAL DATA,1500,Jan-21
EREWASH BOROUGH COUNCIL,223017,Balance Sheet,COVID 19 - Additional Restrictions Grant,13/01/21,REDACTED PERSONAL DATA,1000,Jan-21
EREWASH BOROUGH COUNCIL,223345,Leisure Contract,Contracted Services,16/11/20,PARKWOOD LEISURE LTD,200632,Jan-21
EREWASH BOROUGH COUNCIL,222873,Leisure Contract,Contracted Services,21/12/20,PARKWOOD LEISURE LTD,26733.42,Jan-21
EREWASH BOROUGH COUNCIL,222965,Household/Residual Waste Collection,Repairs and Maintenance,09/12/20,PARTIC MOTOR SPARES LTD,636.12,Jan-21
EREWASH BOROUGH COUNCIL,223105,Balance Sheet,COVID 19 - Additional Restrictions Grant,13/01/21,REDACTED PERSONAL DATA,1500,Jan-21
EREWASH BOROUGH COUNCIL,223026,Balance Sheet,COVID 19 - Additional Restrictions Grant,13/01/21,REDACTED PERSONAL DATA,1000,Jan-21
EREWASH BOROUGH COUNCIL,223061,Balance Sheet,COVID 19 - Additional Restrictions Grant,13/01/21,REDACTED PERSONAL DATA,750,Jan-21
EREWASH BOROUGH COUNCIL,223377,Balance Sheet,COVID 19 - Additional Restrictions Grant,26/01/21,REDACTED PERSONAL DATA,2500,Jan-21
EREWASH BOROUGH COUNCIL,223266,Balance Sheet,COVID 19 - Additional Restrictions Grant,20/01/21,PCC OF ST JOHNS CHURCH,2500,Jan-21
EREWASH BOROUGH COUNCIL,222836,Property and Estates,Repairs and Maintenance,23/12/20,PEEL ELECTRICAL LTD,389.48,Jan-21
EREWASH BOROUGH COUNCIL,223212,Homelessness,Contracted Services,13/12/20,PEOPLE POTENTIAL POSSIBILITIES,27043.83,Jan-21
EREWASH BOROUGH COUNCIL,222999,Environmental Protection Act,Work In Default,21/12/20,PERFECTLY HOUSE PROUD,3269,Jan-21
EREWASH BOROUGH COUNCIL,223067,Balance Sheet,COVID 19 - Additional Restrictions Grant,13/01/21,PETSTAY DERBY,1500,Jan-21
EREWASH BOROUGH COUNCIL,222956,Balance Sheet,ICT Software Licence Payment in Advance,05/01/21,PHOENIX SOFTWARE LTD,903.28,Jan-21
EREWASH BOROUGH COUNCIL,222849,Street Scene,Materials/Consumables,18/12/20,PITCHMARK LIMITED T/A TOTAL AMENITY SUPPLIES,1650,Jan-21
EREWASH BOROUGH COUNCIL,223091,Balance Sheet,COVID 19 - Additional Restrictions Grant,13/01/21,PKB ACCESSORIES,750,Jan-21
EREWASH BOROUGH COUNCIL,223013,Balance Sheet,COVID 19 - Additional Restrictions Grant,13/01/21,PKB ACCESSORIES,500,Jan-21
EREWASH BOROUGH COUNCIL,223246,Balance Sheet,Bond Deposit Accounts S106,18/01/21,PLATFORM HOUSING LIMITED1,100000,Jan-21
EREWASH BOROUGH COUNCIL,223198,Development Control - Fee Earning,Planning Fees,18/01/21,PORTALPLANQUEST LTD,462,Jan-21
EREWASH BOROUGH COUNCIL,223056,Balance Sheet,COVID 19 - Additional Restrictions Grant,13/01/21,POSH CAR LTD,1500,Jan-21
EREWASH BOROUGH COUNCIL,223121,Balance Sheet,COVID 19 - Additional Restrictions Grant,13/01/21,POSH NOSH (EAST MIDLANDS) LTD,2250,Jan-21
EREWASH BOROUGH COUNCIL,223034,Balance Sheet,COVID 19 - Additional Restrictions Grant,13/01/21,POSH NOSH (EAST MIDLANDS) LTD,1500,Jan-21
EREWASH BOROUGH COUNCIL,223083,Balance Sheet,COVID 19 - Additional Restrictions Grant,13/01/21,PROJECT DELIVERY CONSULTING SERVICES LTD,1500,Jan-21
EREWASH BOROUGH COUNCIL,222850,Green Space,Materials/Consumables,17/12/20,PROTECTIVE WEAR SUPPLIES LTD,316.9,Jan-21
EREWASH BOROUGH COUNCIL,222928,Economic Development,Contracted Services,01/01/21,PROXIMITY FUTURES T/A ELEPHANT WIFI,303.33,Jan-21
EREWASH BOROUGH COUNCIL,223352,Balance Sheet,Payroll Collection A/c - AVCS,25/01/21,PRUDENTIAL,2448.16,Jan-21
EREWASH BOROUGH COUNCIL,222840,Performance Management,Consultants Fees,21/12/20,Q2 LIMITED,1155,Jan-21
EREWASH BOROUGH COUNCIL,223449,ICT Support Services,Training,20/05/19,QA LTD,1066,Jan-21
EREWASH BOROUGH COUNCIL,223089,Balance Sheet,COVID 19 - Additional Restrictions Grant,13/01/21,REDACTED PERSONAL DATA,1500,Jan-21
EREWASH BOROUGH COUNCIL,223406,Kerbside Dry Recycling Collection,Agency Staff,31/12/20,QUALITY SERVICE RECRUITMENT LTD,171.96,Jan-21
EREWASH BOROUGH COUNCIL,223406,Household/Residual Waste Collection,Agency Staff,31/12/20,QUALITY SERVICE RECRUITMENT LTD,257.94,Jan-21
EREWASH BOROUGH COUNCIL,223410,Household/Residual Waste Collection,Agency Staff,14/01/21,QUALITY SERVICE RECRUITMENT LTD,333,Jan-21
EREWASH BOROUGH COUNCIL,222808,Household/Residual Waste Collection,Agency Staff,24/12/20,QUALITY SERVICE RECRUITMENT LTD,318.13,Jan-21
EREWASH BOROUGH COUNCIL,222821,Household/Residual Waste Collection,Agency Staff,17/12/20,QUALITY SERVICE RECRUITMENT LTD,318.13,Jan-21
EREWASH BOROUGH COUNCIL,222808,Kerbside Dry Recycling Collection,Agency Staff,24/12/20,QUALITY SERVICE RECRUITMENT LTD,212.08,Jan-21
EREWASH BOROUGH COUNCIL,222821,Kerbside Dry Recycling Collection,Agency Staff,17/12/20,QUALITY SERVICE RECRUITMENT LTD,212.08,Jan-21
EREWASH BOROUGH COUNCIL,223405,Household/Residual Waste Collection,Agency Staff,07/01/21,QUALITY SERVICE RECRUITMENT LTD,193.46,Jan-21
EREWASH BOROUGH COUNCIL,223405,Kerbside Dry Recycling Collection,Agency Staff,07/01/21,QUALITY SERVICE RECRUITMENT LTD,128.97,Jan-21
EREWASH BOROUGH COUNCIL,223410,Kerbside Dry Recycling Collection,Agency Staff,14/01/21,QUALITY SERVICE RECRUITMENT LTD,222,Jan-21
EREWASH BOROUGH COUNCIL,222884,Transport Trading Account,Agency Staff,24/12/20,QUESTECH RECRUITMENT LTD,784,Jan-21
EREWASH BOROUGH COUNCIL,222963,Transport Trading Account,Agency Staff,04/01/21,QUESTECH RECRUITMENT LTD,588,Jan-21
EREWASH BOROUGH COUNCIL,223326,Transport Trading Account,Agency Staff,18/01/21,QUESTECH RECRUITMENT LTD,906.5,Jan-21
EREWASH BOROUGH COUNCIL,222806,Transport Trading Account,Agency Staff,21/12/20,QUESTECH RECRUITMENT LTD,906.5,Jan-21
EREWASH BOROUGH COUNCIL,223149,Transport Trading Account,Agency Staff,11/01/21,QUESTECH RECRUITMENT LTD,906.5,Jan-21
EREWASH BOROUGH COUNCIL,223263,Balance Sheet,COVID 19 - Additional Restrictions Grant,20/01/21,QUICKBITS REVIVAL LIMITED,2500,Jan-21
EREWASH BOROUGH COUNCIL,222945,Building Control - Advice and Information,Contracted Services,01/01/21,RANSOMWOOD ESTATES UK LIMITED,531.67,Jan-21
EREWASH BOROUGH COUNCIL,223024,Balance Sheet,COVID 19 - Additional Restrictions Grant,13/01/21,RATMALLY LTD,1000,Jan-21
EREWASH BOROUGH COUNCIL,223103,Balance Sheet,COVID 19 - Additional Restrictions Grant,13/01/21,RATMALLY LTD,1500,Jan-21
EREWASH BOROUGH COUNCIL,223286,Building Control - Fee Earning,Agency Staff,08/01/21,REED SPECIALIST RECRUITMENT LTD,351.6,Jan-21
EREWASH BOROUGH COUNCIL,222929,Building Control - Fee Earning,Agency Staff,25/12/20,REED SPECIALIST RECRUITMENT LTD,259.31,Jan-21
EREWASH BOROUGH COUNCIL,222833,Building Control - Fee Earning,Agency Staff,18/12/20,REED SPECIALIST RECRUITMENT LTD,360.39,Jan-21
EREWASH BOROUGH COUNCIL,223106,Balance Sheet,COVID 19 - Additional Restrictions Grant,13/01/21,REHANNAH ROSE NAILS BROWS BEAUTY,1500,Jan-21
EREWASH BOROUGH COUNCIL,223027,Balance Sheet,COVID 19 - Additional Restrictions Grant,13/01/21,REHANNAH ROSE NAILS BROWS BEAUTY,1000,Jan-21
EREWASH BOROUGH COUNCIL,222909,Revenues and Benefits,Postages,07/12/20,ROYAL MAIL GROUP LTD.,333,Jan-21
EREWASH BOROUGH COUNCIL,223293,Revenues and Benefits,Postages,13/01/21,ROYAL MAIL GROUP LTD.,1525.11,Jan-21
EREWASH BOROUGH COUNCIL,222948,Revenues and Benefits,Postages,06/01/21,ROYAL MAIL GROUP LTD.,333,Jan-21
EREWASH BOROUGH COUNCIL,222958,Green Space,Repairs and Maintenance,31/12/20,RUSSELLS (KIRBYMOORSIDE) LIMITED,670.06,Jan-21
EREWASH BOROUGH COUNCIL,222968,Green Space,Repairs and Maintenance,31/12/20,RUSSELLS (KIRBYMOORSIDE) LIMITED,3287.8,Jan-21
EREWASH BOROUGH COUNCIL,222964,Green Space,Repairs and Maintenance,31/12/20,RUSSELLS (KIRBYMOORSIDE) LIMITED,5189.91,Jan-21
EREWASH BOROUGH COUNCIL,223254,Balance Sheet,COVID 19 - Additional Restrictions Grant,20/01/21,S P RENWICK GARAGE SERVICES,2500,Jan-21
EREWASH BOROUGH COUNCIL,223375,Balance Sheet,COVID 19 - Additional Restrictions Grant,26/01/21,S&E BEAUTY LOUNGE,2500,Jan-21
EREWASH BOROUGH COUNCIL,223368,Balance Sheet,COVID 19 - Additional Restrictions Grant,26/01/21,SAM@HEADROOM,2500,Jan-21
EREWASH BOROUGH COUNCIL,222922,Urban Renewal,Licence - Housing Multiple Occupancy,05/01/21,REDACTED PERSONAL DATA,793,Jan-21
EREWASH BOROUGH COUNCIL,223015,Balance Sheet,COVID 19 - Additional Restrictions Grant,13/01/21,REDACTED PERSONAL DATA,1000,Jan-21
EREWASH BOROUGH COUNCIL,223096,Balance Sheet,COVID 19 - Additional Restrictions Grant,13/01/21,REDACTED PERSONAL DATA,1500,Jan-21
EREWASH BOROUGH COUNCIL,222973,Street Scene,Repairs and Maintenance,05/01/21,SCARAB SWEEPERS LTD,816.71,Jan-21
EREWASH BOROUGH COUNCIL,222959,Cemeteries,Metered Water,01/01/21,SCOTTISH WATER BUSINESS STREAM LIMITED,86.97,Jan-21
EREWASH BOROUGH COUNCIL,222959,Sandiacre Friesland Sports Centre,Metered Water,01/01/21,SCOTTISH WATER BUSINESS STREAM LIMITED,598.96,Jan-21
EREWASH BOROUGH COUNCIL,222959,Rutland Sports Park,Metered Water,01/01/21,SCOTTISH WATER BUSINESS STREAM LIMITED,117.11,Jan-21
EREWASH BOROUGH COUNCIL,222959,Green Space,Metered Water,01/01/21,SCOTTISH WATER BUSINESS STREAM LIMITED,711.66,Jan-21
EREWASH BOROUGH COUNCIL,222959,Erewash Museum,Unmetered Water,01/01/21,SCOTTISH WATER BUSINESS STREAM LIMITED,69.95,Jan-21
EREWASH BOROUGH COUNCIL,222959,Civic Accommodation - Long Eaton,Metered Water,01/01/21,SCOTTISH WATER BUSINESS STREAM LIMITED,175.81,Jan-21
EREWASH BOROUGH COUNCIL,222959,Merlin Way Depot - Ilkeston,Metered Water,01/01/21,SCOTTISH WATER BUSINESS STREAM LIMITED,1798.18,Jan-21
EREWASH BOROUGH COUNCIL,222959,Public Conveniences,Metered Water,01/01/21,SCOTTISH WATER BUSINESS STREAM LIMITED,130.16,Jan-21
EREWASH BOROUGH COUNCIL,222959,Allotments,Metered Water,01/01/21,SCOTTISH WATER BUSINESS STREAM LIMITED,624.65,Jan-21
EREWASH BOROUGH COUNCIL,222959,Cotmanhay Pavilion,Unmetered Water,01/01/21,SCOTTISH WATER BUSINESS STREAM LIMITED,4.51,Jan-21
EREWASH BOROUGH COUNCIL,222959,Shopmobility - Ilkeston,Metered Water,01/01/21,SCOTTISH WATER BUSINESS STREAM LIMITED,34.93,Jan-21
EREWASH BOROUGH COUNCIL,222959,Civic Accommodation - Ilkeston,Metered Water,01/01/21,SCOTTISH WATER BUSINESS STREAM LIMITED,421.42,Jan-21
EREWASH BOROUGH COUNCIL,222959,Long Eaton Market,Metered Water,01/01/21,SCOTTISH WATER BUSINESS STREAM LIMITED,240.41,Jan-21
EREWASH BOROUGH COUNCIL,222959,Shopmobility - Long Eaton,Metered Water,01/01/21,SCOTTISH WATER BUSINESS STREAM LIMITED,15.68,Jan-21
EREWASH BOROUGH COUNCIL,222959,Car Parking,Unmetered Water,01/01/21,SCOTTISH WATER BUSINESS STREAM LIMITED,1.18,Jan-21
EREWASH BOROUGH COUNCIL,222997,Street Scene,Training,14/08/20,S-G TRANSPORT TRAINING & LOGISTICS LTD,216.67,Jan-21
EREWASH BOROUGH COUNCIL,223060,Balance Sheet,COVID 19 - Additional Restrictions Grant,13/01/21,SHERBETS EVENTS UK LTD,1500,Jan-21
EREWASH BOROUGH COUNCIL,223382,Balance Sheet,COVID 19 - Additional Restrictions Grant,26/01/21,SMILING CATS AND DOGS,2500,Jan-21
EREWASH BOROUGH COUNCIL,222917,Democratic Representation,Communications costs,17/12/20,SNOW ELK PRODUCTIONS,400,Jan-21
EREWASH BOROUGH COUNCIL,222558,ICT Support Services,Security,10/12/20,SOFTCAT LTD,1436.71,Jan-21
EREWASH BOROUGH COUNCIL,222735,ICT Support Services,Security,20/12/20,SPECOPS SOFTWARE LTD,449.28,Jan-21
EREWASH BOROUGH COUNCIL,222715,Street Scene,Materials/Consumables,11/12/20,STANTON RECYCLING LIMITED,308.8,Jan-21
EREWASH BOROUGH COUNCIL,222995,Street Scene,Materials/Consumables,18/12/20,STANTON RECYCLING LIMITED,917.6,Jan-21
EREWASH BOROUGH COUNCIL,223084,Balance Sheet,COVID 19 - Additional Restrictions Grant,13/01/21,STAY & PLAY FOR DOGS,1500,Jan-21
EREWASH BOROUGH COUNCIL,222846,Pedestrian Zones - Ilkeston and Long Eaton,Reactive Maintenance,23/12/20,STEELCRAFT FABRICATIONS,260,Jan-21
EREWASH BOROUGH COUNCIL,223087,Balance Sheet,COVID 19 - Additional Restrictions Grant,13/01/21,STREET FOOD KITCHEN,1500,Jan-21
EREWASH BOROUGH COUNCIL,223079,Balance Sheet,COVID 19 - Additional Restrictions Grant,13/01/21,STUARTS HAIR & BEAUTY,1500,Jan-21
EREWASH BOROUGH COUNCIL,223371,Balance Sheet,COVID 19 - Additional Restrictions Grant,26/01/21,STUARTS HAIR & BEAUTY.,2500,Jan-21
EREWASH BOROUGH COUNCIL,223077,Balance Sheet,COVID 19 - Additional Restrictions Grant,13/01/21,STYLISH HOMES (NOTTS) LTD,1500,Jan-21
EREWASH BOROUGH COUNCIL,222610,Green Space,Materials/Consumables,07/10/20,T H HEATH  CONTRACTS  LTD,236,Jan-21
EREWASH BOROUGH COUNCIL,222861,Green Space,Materials/Consumables,22/12/20,T H HEATH  CONTRACTS  LTD,472,Jan-21
EREWASH BOROUGH COUNCIL,222844,Green Space,Materials/Consumables,07/10/20,T H HEATH  CONTRACTS  LTD,1780,Jan-21
EREWASH BOROUGH COUNCIL,223261,Balance Sheet,COVID 19 - Additional Restrictions Grant,20/01/21,T/A APPEARANCE HAIR & BEAUTY,2500,Jan-21
EREWASH BOROUGH COUNCIL,223074,Balance Sheet,COVID 19 - Additional Restrictions Grant,13/01/21,TAYLORMADE JOINERY CONSULTANTS,750,Jan-21
EREWASH BOROUGH COUNCIL,222834,Property and Estates,Alarms Reactive Maintenance,24/12/20,TECSERV UK,837,Jan-21
EREWASH BOROUGH COUNCIL,222896,ICT Support Services,Telephones,01/01/21,TELEPHONE TECHNOLOGY LTD,210,Jan-21
EREWASH BOROUGH COUNCIL,222765,Balance Sheet,Vehicles and Other Equipment,10/12/20,TERBERG MATEC UK,163493.66,Jan-21
EREWASH BOROUGH COUNCIL,222768,Balance Sheet,Vehicles and Other Equipment,10/12/20,TERBERG MATEC UK,355,Jan-21
EREWASH BOROUGH COUNCIL,222766,Balance Sheet,Vehicles and Other Equipment,10/12/20,TERBERG MATEC UK,355,Jan-21
EREWASH BOROUGH COUNCIL,222767,Balance Sheet,Vehicles and Other Equipment,10/12/20,TERBERG MATEC UK,163493.66,Jan-21
EREWASH BOROUGH COUNCIL,222597,Household/Residual Waste Collection,Repairs and Maintenance,09/12/20,TERBERG MATEC UK,311.86,Jan-21
EREWASH BOROUGH COUNCIL,223387,Balance Sheet,COVID 19 - Additional Restrictions Grant,26/01/21,TESCA,1250,Jan-21
EREWASH BOROUGH COUNCIL,223381,Balance Sheet,COVID 19 - Additional Restrictions Grant,26/01/21,THE BEAUTY RETREAT,2500,Jan-21
EREWASH BOROUGH COUNCIL,223215,Homelessness,Temporary Accommodation,11/01/21,THE CLARENCE HOTEL,350,Jan-21
EREWASH BOROUGH COUNCIL,223287,Homelessness,Temporary Accommodation,30/11/20,THE CLARENCE HOTEL,50,Jan-21
EREWASH BOROUGH COUNCIL,223418,Homelessness,Temporary Accommodation,07/12/20,THE CLARENCE HOTEL,350,Jan-21
EREWASH BOROUGH COUNCIL,223214,Homelessness,Temporary Accommodation,04/01/21,THE CLARENCE HOTEL,350,Jan-21
EREWASH BOROUGH COUNCIL,223287,Homelessness,Temporary Accommodation,30/11/20,THE CLARENCE HOTEL,250,Jan-21
EREWASH BOROUGH COUNCIL,223318,Homelessness,Temporary Accommodation,18/01/21,THE CLARENCE HOTEL,350,Jan-21
EREWASH BOROUGH COUNCIL,223213,Homelessness,Temporary Accommodation,29/12/20,THE CLARENCE HOTEL,350,Jan-21
EREWASH BOROUGH COUNCIL,223217,Homelessness,Temporary Accommodation,07/12/20,THE CLARENCE HOTEL,350,Jan-21
EREWASH BOROUGH COUNCIL,223260,Balance Sheet,COVID 19 - Additional Restrictions Grant,20/01/21,THE HOUSE OF SK-1 LTD,2500,Jan-21
EREWASH BOROUGH COUNCIL,223042,Development Control - Fee Earning,Reference Literature and Publications,01/01/21,THOMSON REUTERS,2175,Jan-21
EREWASH BOROUGH COUNCIL,222812,Household/Residual Waste Collection,Agency Staff,22/12/20,THORN BAKER LIMITED,2245.49,Jan-21
EREWASH BOROUGH COUNCIL,222812,Kerbside Dry Recycling Collection,Agency Staff,22/12/20,THORN BAKER LIMITED,1496.99,Jan-21
EREWASH BOROUGH COUNCIL,222819,Kerbside Dry Recycling Collection,Agency Staff,15/12/20,THORN BAKER LIMITED,1588.12,Jan-21
EREWASH BOROUGH COUNCIL,222819,Household/Residual Waste Collection,Agency Staff,15/12/20,THORN BAKER LIMITED,2382.17,Jan-21
EREWASH BOROUGH COUNCIL,222533,Trees Hedges and Local Nature Reserves,Contracted Services,10/12/20,TOM RICHARDS TREE SERVICES,1100,Jan-21
EREWASH BOROUGH COUNCIL,222644,Trees Hedges and Local Nature Reserves,Contracted Services,15/12/20,TOM RICHARDS TREE SERVICES,250,Jan-21
EREWASH BOROUGH COUNCIL,222689,Civic Accommodation - Long Eaton,Electricity,17/12/20,TOTAL GAS & POWER LTD,24.23,Jan-21
EREWASH BOROUGH COUNCIL,222690,Merlin Way Depot - Ilkeston,Electricity,17/12/20,TOTAL GAS & POWER LTD,1577.37,Jan-21
EREWASH BOROUGH COUNCIL,222689,Shopmobility - Long Eaton,Electricity,17/12/20,TOTAL GAS & POWER LTD,173.52,Jan-21
EREWASH BOROUGH COUNCIL,222690,Long Eaton Market,Electricity,17/12/20,TOTAL GAS & POWER LTD,165.77,Jan-21
EREWASH BOROUGH COUNCIL,222689,Public Conveniences,Electricity,17/12/20,TOTAL GAS & POWER LTD,340.47,Jan-21
EREWASH BOROUGH COUNCIL,222689,Ilkeston Market,Electricity,17/12/20,TOTAL GAS & POWER LTD,324.74,Jan-21
EREWASH BOROUGH COUNCIL,222689,Cemeteries,Electricity,17/12/20,TOTAL GAS & POWER LTD,209.7,Jan-21
EREWASH BOROUGH COUNCIL,222690,Green Space,Electricity,17/12/20,TOTAL GAS & POWER LTD,495.82,Jan-21
EREWASH BOROUGH COUNCIL,222689,Pewit Golf Course,Electricity,17/12/20,TOTAL GAS & POWER LTD,69.79,Jan-21
EREWASH BOROUGH COUNCIL,223048,Erewash Museum,Gas,08/12/20,TOTAL GAS & POWER LTD,278.17,Jan-21
EREWASH BOROUGH COUNCIL,223048,Green Space,Gas,08/12/20,TOTAL GAS & POWER LTD,524.81,Jan-21
EREWASH BOROUGH COUNCIL,223048,Rutland Sports Park,Gas,08/12/20,TOTAL GAS & POWER LTD,203.59,Jan-21
EREWASH BOROUGH COUNCIL,223048,Sandiacre Friesland Sports Centre,Gas,08/12/20,TOTAL GAS & POWER LTD,290.02,Jan-21
EREWASH BOROUGH COUNCIL,222689,Erewash Museum,Electricity,17/12/20,TOTAL GAS & POWER LTD,194.46,Jan-21
EREWASH BOROUGH COUNCIL,222689,Civic Accommodation - Ilkeston,Electricity,17/12/20,TOTAL GAS & POWER LTD,253.56,Jan-21
EREWASH BOROUGH COUNCIL,222689,Bridge Arches - Long Eaton,Electricity,17/12/20,TOTAL GAS & POWER LTD,40.65,Jan-21
EREWASH BOROUGH COUNCIL,222689,Car Parking,Electricity,17/12/20,TOTAL GAS & POWER LTD,700.11,Jan-21
EREWASH BOROUGH COUNCIL,222689,CCTV - Ilkeston and Long Eaton,Electricity,17/12/20,TOTAL GAS & POWER LTD,325.06,Jan-21
EREWASH BOROUGH COUNCIL,222689,Public Clocks,Electricity,17/12/20,TOTAL GAS & POWER LTD,18.16,Jan-21
EREWASH BOROUGH COUNCIL,222689,Abbotsford Community Centre,Electricity,17/12/20,TOTAL GAS & POWER LTD,-232.18,Jan-21
EREWASH BOROUGH COUNCIL,223048,Civic Accommodation - Ilkeston,Gas,08/12/20,TOTAL GAS & POWER LTD,994.37,Jan-21
EREWASH BOROUGH COUNCIL,222689,Watercourse Maintenance,Electricity,17/12/20,TOTAL GAS & POWER LTD,17.86,Jan-21
EREWASH BOROUGH COUNCIL,222689,Long Eaton Market,Electricity,17/12/20,TOTAL GAS & POWER LTD,40.67,Jan-21
EREWASH BOROUGH COUNCIL,222689,Cotmanhay Pavilion,Electricity,17/12/20,TOTAL GAS & POWER LTD,54.51,Jan-21
EREWASH BOROUGH COUNCIL,222690,Sandiacre Friesland Sports Centre,Electricity,17/12/20,TOTAL GAS & POWER LTD,419.39,Jan-21
EREWASH BOROUGH COUNCIL,222689,Green Space,Electricity,17/12/20,TOTAL GAS & POWER LTD,1475.81,Jan-21
EREWASH BOROUGH COUNCIL,222689,Shopmobility - Ilkeston,Electricity,17/12/20,TOTAL GAS & POWER LTD,178.37,Jan-21
EREWASH BOROUGH COUNCIL,223048,Merlin Way Depot - Ilkeston,Gas,08/12/20,TOTAL GAS & POWER LTD,385.98,Jan-21
EREWASH BOROUGH COUNCIL,223048,Abbotsford Community Centre,Gas,08/12/20,TOTAL GAS & POWER LTD,185.93,Jan-21
EREWASH BOROUGH COUNCIL,223048,Bridge House - Long Eaton,Gas,08/12/20,TOTAL GAS & POWER LTD,206.34,Jan-21
EREWASH BOROUGH COUNCIL,222689,Toll Bar House - Ilkeston,Electricity,17/12/20,TOTAL GAS & POWER LTD,417.57,Jan-21
EREWASH BOROUGH COUNCIL,222690,Civic Accommodation - Ilkeston,Electricity,17/12/20,TOTAL GAS & POWER LTD,1173.64,Jan-21
EREWASH BOROUGH COUNCIL,222690,Civic Accommodation - Long Eaton,Electricity,17/12/20,TOTAL GAS & POWER LTD,1614.58,Jan-21
EREWASH BOROUGH COUNCIL,222689,Belvoir Close Maintenance,Electricity,17/12/20,TOTAL GAS & POWER LTD,28.34,Jan-21
EREWASH BOROUGH COUNCIL,223048,Civic Accommodation - Long Eaton,Gas,08/12/20,TOTAL GAS & POWER LTD,972.3,Jan-21
EREWASH BOROUGH COUNCIL,223272,Green Space,Agency Staff,30/10/20,TOTAL TRANSPORT COMPLIANCE,1100,Jan-21
EREWASH BOROUGH COUNCIL,223271,Transport Trading Account,Agency Staff,25/12/20,TOTAL TRANSPORT COMPLIANCE,1500,Jan-21
EREWASH BOROUGH COUNCIL,223021,Balance Sheet,COVID 19 - Additional Restrictions Grant,13/01/21,TRAIN WITH LEE,1000,Jan-21
EREWASH BOROUGH COUNCIL,223101,Balance Sheet,COVID 19 - Additional Restrictions Grant,13/01/21,TRAIN WITH LEE,1500,Jan-21
EREWASH BOROUGH COUNCIL,223040,Balance Sheet,COVID 19 - Additional Restrictions Grant,13/01/21,TRENT MARQUEES,1000,Jan-21
EREWASH BOROUGH COUNCIL,223117,Balance Sheet,COVID 19 - Additional Restrictions Grant,13/01/21,TRENT MARQUEES,1500,Jan-21
EREWASH BOROUGH COUNCIL,223373,Balance Sheet,COVID 19 - Additional Restrictions Grant,26/01/21,TUCK ME UNDER LTD,2500,Jan-21
EREWASH BOROUGH COUNCIL,222712,Green Space,Materials/Consumables,10/12/20,TUDOR ENVIRONMENTAL,531.5,Jan-21
EREWASH BOROUGH COUNCIL,223284,Homelessness,Homelessness-Lease Properties,20/01/21,TUNTUM HOUSING ASSOCIATION.,1238.25,Jan-21
EREWASH BOROUGH COUNCIL,223369,Balance Sheet,COVID 19 - Additional Restrictions Grant,26/01/21,UK BIKE FIT,2500,Jan-21
EREWASH BOROUGH COUNCIL,223248,Balance Sheet,COVID 19 - Additional Restrictions Grant,20/01/21,REDACTED PERSONAL DATA,2500,Jan-21
EREWASH BOROUGH COUNCIL,222933,Personnel,Legal Expenses,30/12/20,UNIONLINE,250,Jan-21
EREWASH BOROUGH COUNCIL,223354,Balance Sheet,Payroll Collection A/c - Trade Union Subscriptions,25/01/21,UNISON,474.6,Jan-21
EREWASH BOROUGH COUNCIL,223354,Payments,Commission,25/01/21,UNISON,-7.12,Jan-21
EREWASH BOROUGH COUNCIL,223086,Balance Sheet,COVID 19 - Additional Restrictions Grant,13/01/21,VICKYS SWIMSCHOOL,1500,Jan-21
EREWASH BOROUGH COUNCIL,223229,ICT Support Services,Data Lines,01/01/21,VODAFONE,1355.74,Jan-21
EREWASH BOROUGH COUNCIL,223379,Balance Sheet,COVID 19 - Additional Restrictions Grant,26/01/21,WAY AHEAD,2500,Jan-21
EREWASH BOROUGH COUNCIL,223430,Community Grants,Project Grants,27/01/21,WEST HALLAM VILLAGE HALL.,750,Jan-21
EREWASH BOROUGH COUNCIL,223259,Balance Sheet,COVID 19 - Additional Restrictions Grant,20/01/21,WHILE I BREATHE,2500,Jan-21
EREWASH BOROUGH COUNCIL,222899,Green Space,Materials/Consumables,18/12/20,WICKSTEED LEISURE LTD,436.17,Jan-21
EREWASH BOROUGH COUNCIL,223289,Council Tax Collection,Fees Costs and Expenses,04/01/21,WILKIN CHAPMAN LLP,1874,Jan-21
EREWASH BOROUGH COUNCIL,223290,Council Tax Collection,Fees Costs and Expenses,06/01/21,WILKIN CHAPMAN LLP,350,Jan-21
EREWASH BOROUGH COUNCIL,222810,Kerbside Dry Recycling Collection,Agency Staff,12/12/20,WORKCHAIN LTD,459.69,Jan-21
EREWASH BOROUGH COUNCIL,223408,Household/Residual Waste Collection,Agency Staff,02/01/21,WORKCHAIN LTD,635.32,Jan-21
EREWASH BOROUGH COUNCIL,222809,Kerbside Dry Recycling Collection,Agency Staff,19/12/20,WORKCHAIN LTD,696.49,Jan-21
EREWASH BOROUGH COUNCIL,223408,Kerbside Dry Recycling Collection,Agency Staff,02/01/21,WORKCHAIN LTD,423.54,Jan-21
EREWASH BOROUGH COUNCIL,223407,Kerbside Dry Recycling Collection,Agency Staff,26/12/20,WORKCHAIN LTD,564.72,Jan-21
EREWASH BOROUGH COUNCIL,222810,Household/Residual Waste Collection,Agency Staff,12/12/20,WORKCHAIN LTD,689.53,Jan-21
EREWASH BOROUGH COUNCIL,222809,Household/Residual Waste Collection,Agency Staff,19/12/20,WORKCHAIN LTD,1044.73,Jan-21
EREWASH BOROUGH COUNCIL,223407,Household/Residual Waste Collection,Agency Staff,26/12/20,WORKCHAIN LTD,847.08,Jan-21
